Cogmind - Beta 13 X2 @@@ ROGUE MODE // 2023.12.20 @ 07:52:05 Player: LU-1G1 Result: Destroyed by G-47 Trooper with Particle Gun Performance ------------- Evolutions (2) 1000 Regions Visited (5) 1000 Robots Destroyed (49) 245 Value Destroyed (1114) 1114 Prototype IDs (25) 500 Alien Tech Used (0) 0 Bonus (300) 300 TOTAL SCORE: 4159 Bonus ------- Aligned with FarCom 300 Cogmind --------- Core Integrity 0/550 Matter 102/300 Energy 96/100 System Corruption 0% Temperature Cool (9) Movement Core (750) Ox14 Location -8/Materials Parts ------- > --- POWER (1) -------- (None) > --- PROPULSION (3) --- (None) > --- UTILITY (5) ------ High-capacity Storage Unit > --- WEAPON (2) ------- Assault Rifle Light Assault Rifle > --- INVENTORY (20) --- Ion Engine Light Nuclear Core Compact Wheel Compact Wheel High-capacity Matter Pod (200) Machine Analyzer Light Assault Rifle XL Autogun Array Grenade Launcher Rocket Launcher Rocket Launcher Mining Laser Peak State ------------ > --- POWER ------------ Light Angular Momentum Engine > --- PROPULSION ------- Light Treads Light Treads Light Treads > --- UTILITY ---------- High-capacity Storage Unit > --- WEAPON ----------- Light Assault Rifle Heavy Assault Rifle > --- INVENTORY -------- Ion Engine Light Nuclear Core Compact Wheel Compact Wheel High-capacity Matter Pod Assault Rifle Light Assault Rifle Light Assault Rifle Light Assault Rifle Light Assault Rifle Light Assault Rifle Light Assault Rifle XL Autogun Array Grenade Launcher Grenade Launcher Rocket Launcher Mining Laser [Rating: 17] Favorites ----------- Power Ion Engine Engine Ion Engine Propulsion Light Treads Treads Light Treads Leg Carbon-fiber Leg Utility High-capacity Storage Unit Device Seismic Detector Storage High-capacity Storage Unit Protection Hardened Light Armor Plating Weapon Light Assault Rifle Ballistic Gun Light Assault Rifle Launcher Grenade Launcher Build | -11 -10 -10 -10 -9 -8 ------- Run | Yrd Mat Min Exi Min Mat Slots Evolved 4 | . . . . . 4 Power . | . . . . . . Propulsion 1 | . . . . . 1 Utility 3 | . . . . . 3 Weapon . | . . . . . . Parts Attached 36 | 7 7 . 1 8 13 Power 3 | 1 . . . 1 1 Engine 3 | 1 . . . 1 1 Core . | . . . . . . Reactor . | . . . . . . Propulsion 8 | 2 2 . . . 4 Treads 7 | 2 2 . . . 3 Leg 1 | . . . . . 1 Wheel . | . . . . . . Hover . | . . . . . . Flight . | . . . . . . Utility 6 | 2 1 . 1 2 . Device 2 | 1 . . . 1 . Storage 3 | 1 1 . 1 . . Processor . | . . . . . . Hackware . | . . . . . . Protection 1 | . . . . 1 . Artifact . | . . . . . . Weapon 19 | 2 4 . . 5 8 Energy Gun . | . . . . . . Energy Cannon . | . . . . . . Ballistic Gun 18 | 2 4 . . 4 8 Ballistic Cannon . | . . . . . . Launcher 1 | . . . . 1 . Special Weapon . | . . . . . . Impact Weapon . | . . . . . . Slashing Weapon . | . . . . . . Piercing Weapon . | . . . . . . Special Melee Weapon . | . . . . . . Unidentified Prototypes . | . . . . . . Parts Lost 17 | . . . . 2 15 Power 3 | . . . . 1 2 Propulsion 6 | . . . . . 6 Utility 2 | . . . . 1 1 Weapon 6 | . . . . . 6 Highest Loss Streak 8 | . . . . 1 8 To Critical Strikes . | . . . . . . Average Slot Usage (%) 92 | . 99 100 100 91 48 Engine 10 | . 14 14 14 6 3 Treads 26 | . 27 28 28 28 16 Device 12 | . 14 14 14 12 . Storage 13 | . 14 14 14 14 9 Ballistic Gun 26 | . 27 28 28 27 17 Naked Turns . | . . . . . . Heaviest Build 53 | 14 29 29 49 51 53 Greatest Support 60 | 40 40 40 40 40 60 Greatest Overweight (x) 2 | . . . 1 1 2 Average Overweight (x) . | . . . . 1 . Largest Inventory Capacity 20 | 8 15 15 20 20 20 Average Capacity 16 | 7 8 15 19 20 20 Most Carried 20 | 6 8 10 14 20 20 Average Carried 12 | 3 7 9 11 17 19 Final Capacity 20 | 8 15 15 20 20 20 Final Carried 20 | 6 8 10 14 20 15 Class Distribution -------------------- 66% | Mutant 30% | Skirmisher 3% | Scavenger-Mutant Dominant Class ---------------- Mutant | -10/Materials Mutant | -10/Mines Mutant | -10/Exiles Skirmisher | -9/Mines Mutant | -8/Materials Resources | -11 -10 -10 -10 -9 -8 ----------- Run | Yrd Mat Min Exi Min Mat Matter Collected 905 | 278 226 . 22 114 265 Remotely . | . . . . . . Salvage Created 1498 | 107 392 27 . 204 768 Parts 101 | 7 32 . . 19 43 Haulers Intercepted . | . . . . . . Recyclers Shooed 1 | . . . . 1 . Parts Field Recycled . | . . . . . . Retrieved Matter . | . . . . . . Parts Self-Destructed . | . . . . . . Prevented . | . . . . . . Kills | -11 -10 -10 -10 -9 -8 ------- Run | Yrd Mat Min Exi Min Mat Combat Hostiles Destroyed 44 | . 12 2 . 14 16 Guns 39 | . 12 2 . 9 16 AOE 5 | . . . . 5 . Classes Destroyed 10 | 2 3 1 . . 4 Worker 3 | . 2 . . . 1 Builder 1 | . . . . . 1 Tunneler 1 | 1 . . . . . Recycler 1 | 1 . . . . . Mechanic 1 | . . . . . 1 Swarmer 22 | . 6 . . 12 4 Grunt 17 | . 6 . . 2 9 Brawler 1 | . . . . . 1 Sentry 2 | . . . . . 2 Assembled 2 | . . 2 . . . Best Kill Streak 6 | 2 5 2 . 5 6 Combat Bots Only 5 | . 4 2 . 5 5 Max Kills in Single Turn 3 | 1 1 1 . 3 1 Gunslinging . | . . . . . . Exploded 3 | . . . . 3 . Melee . | . . . . . . Uniques/NPCs Destroyed . | . . . . . . Combat | -11 -10 -10 -10 -9 -8 -------- Run | Yrd Mat Min Exi Min Mat Hostile Shots Fired 275 | . 44 3 . 59 169 Missed 69 | . 11 2 . 16 40 Damage Taken 2610 | . 341 14 . 405 1850 Core 734 | . 68 . . 110 556 Absorbed by Shields . | . . . . . . Regen/Repaired (Parts) 119 | . 119 . . . . Core Remaining (%) 64 | 100 . . . 28 . Volleys Fired 151 | 2 39 3 . 28 79 Largest 2 | 2 2 2 . 2 2 Hottest 48 | 40 40 40 . 40 48 Shots Fired 288 | 4 78 6 . 54 146 Gun 286 | 4 78 6 . 52 146 Cannon . | . . . . . . Launcher 2 | . . . . 2 . Special . | . . . . . . Kinetic 286 | 4 78 6 . 52 146 Thermal . | . . . . . . Explosive 2 | . . . . 2 . Electromagnetic . | . . . . . . Robot Hit Streak 12 | 2 9 7 . 12 10 Robot Miss Streak 4 | 1 4 . . 2 3 Penetration Max . | . . . . . . Secondary Targets 6 | . 1 . . 3 2 Max Gunslinging Chain 1 | . 1 . . 1 1 Shots Hit Robots 194 | 2 46 5 . 34 107 Core Hits 94 | 2 22 4 . 21 45 Critical Kills 1 | . . . . 1 . Critical Parts Destroyed 2 | . 1 . . . 1 Critical Strikes 3 | . 1 . . 1 1 Destroy 3 | . 1 . . 1 1 Melee Attacks . | . . . . . . Impact . | . . . . . . Slashing . | . . . . . . Piercing . | . . . . . . Sneak Attacks . | . . . . . . Combat Hostiles . | . . . . . . Follow-up Attacks . | . . . . . . Damage Inflicted 2663 | 26 533 74 . 671 1359 Guns 2306 | 26 533 54 . 334 1359 Cannons . | . . . . . . Explosions 308 | . . . . 308 . Melee . | . . . . . . Ramming 49 | . . 20 . 29 . Kinetic 2306 | 26 533 54 . 334 1359 Thermal . | . . . . . . Explosive 308 | . . . . 308 . Electromagnetic . | . . . . . . Impact . | . . . . . . Slashing . | . . . . . . Piercing . | . . . . . . Highest Corruption . | . . . . . . Average Corruption . | . . . . . . Corruption Purged . | . . . . . . Corruption Blocked . | . . . . . . Overload Shots . | . . . . . . Overflow Damage 8 | . . . . 8 . Projectiles . | . . . . . . Explosions 8 | . . . . 8 . Melee . | . . . . . . Knockbacks . | . . . . . . Impact . | . . . . . . Kinetic . | . . . . . . Secondary . | . . . . . . Self-Inflicted Damage . | . . . . . . Shots . | . . . . . . Rammed 8 | . 1 4 . 3 . Targets Rammed 8 | . 1 4 . 3 . Kicked . | . . . . . . Crushed . | . . . . . . Highest Temperature 30 | . 18 . . 30 29 Average Temperature 8 | . 7 . . 14 7 Received Heat Transfer 1209 | . 93 . . 90 1026 Siege Activations . | . . . . . . Robots Corrupted . | . . . . . . Combat Hostiles . | . . . . . . Parts Fried . | . . . . . . Impact Corruptions . | . . . . . . Robots Melted . | . . . . . . Combat Hostiles . | . . . . . . Parts Melted . | . . . . . . Heat Transferred . | . . . . . . Parts Sabotaged . | . . . . . . Parts Stolen . | . . . . . . Parts Stripped . | . . . . . . Power Chain Reactions . | . . . . . . Missiles Intercepted . | . . . . . . Alert | -11 -10 -10 -10 -9 -8 ------- Run | Yrd Mat Min Exi Min Mat Peak Influence 353 | 10 161 15 . 220 353 Initial 52 | . 6 . . . 52 Average 66 | 3 46 2 . 75 164 Maximum Alert Level 1 | . . . . 1 1 Low Security (%) 91 | 100 100 100 . 85 77 Level 1 8 | . . . . 14 22 Level 2 . | . . . . . . Level 3 . | . . . . . . Level 4 . | . . . . . . Level 5 . | . . . . . . High Security . | . . . . . . Max Security . | . . . . . . Squads Dispatched 4 | . 3 . . . 1 Investigation 2 | . 2 . . . . Extermination . | . . . . . . Reinforcement 2 | . 1 . . . 1 Assault . | . . . . . . Garrison . | . . . . . . Intercept . | . . . . . . Searches Triggered . | . . . . . . Construction Impeded . | . . . . . . Haulers Reinforced . | . . . . . . Active Scanning Responses . | . . . . . . Cargo Convoy Interrupts . | . . . . . . Stealth | -11 -10 -10 -10 -9 -8 --------- Run | Yrd Mat Min Exi Min Mat Distress Signals 1 | . . 1 . . . Communications Jammed . | . . . . . . Distress Signals . | . . . . . . Times Spotted 63 | . 18 4 . 19 22 Peak Tracking Total 11 | . 3 7 . 5 11 Tactical Retreats 5 | . . 2 . 2 1 Traps | -11 -10 -10 -10 -9 -8 ------- Run | Yrd Mat Min Exi Min Mat Traps Triggered 4 | . 4 . . . . Indirectly . | . . . . . . Trap Hack Attempts . | . . . . . . Triggered . | . . . . . . Disarmed . | . . . . . . Reprogrammed . | . . . . . . Reused . | . . . . . . Traps Extracted . | . . . . . . Installed . | . . . . . . Triggered . | . . . . . . Machines | -11 -10 -10 -10 -9 -8 ---------- Run | Yrd Mat Min Exi Min Mat Machines Disabled 1 | . . . . 1 . Max in Single Turn 1 | . . . . 1 . Machines Repaired . | . . . . . . Machines Dismantled . | . . . . . . Machines Sabotaged . | . . . . . . Overloaded Fab Kills . | . . . . . . Hacking | -11 -10 -10 -10 -9 -8 --------- Run | Yrd Mat Min Exi Min Mat Machines Accessed 8 | . 6 . 2 . . Terminals 5 | . 5 . . . . Fabricators . | . . . . . . Repair Stations 1 | . 1 . . . . Recycling Units . | . . . . . . Scanalyzers . | . . . . . . Garrison Access . | . . . . . . Total Hacks 24 | . 22 . 2 . . Successful 14 | . 12 . 2 . . Failed 10 | . 10 . . . . Catastrophic 1 | . 1 . . . . Database Lockouts . | . . . . . . Manual 12 | . 11 . 1 . . Terminals 16 | . 16 . . . . Fabricators . | . . . . . . Repair Stations 6 | . 6 . . . . Recycling Units . | . . . . . . Scanalyzers . | . . . . . . Garrison Access . | . . . . . . Terminal Hacks 9 | . 7 . 2 . . Record 1 | . . . 1 . . Robot Analysis 3 | . 3 . . . . Prototype ID Bank 1 | . 1 . . . . Terminal Index 1 | . 1 . . . . Unreport Threat 1 | . 1 . . . . Hauler Manifests 1 | . 1 . . . . Derelict Proto ID Bank 1 | . . . 1 . . Fabricator Hacks . | . . . . . . Repair Station Hacks 4 | . 4 . . . . Scan Component 2 | . 2 . . . . Repair 2 | . 2 . . . . Recycling Unit Hacks . | . . . . . . Scanalyzer . | . . . . . . Garrison Access Hacks . | . . . . . . Unauthorized Hacks 1 | . 1 . . . . Terminals 1 | . 1 . . . . Operators 1 | . 1 . . . . Fabricators . | . . . . . . Repair Stations . | . . . . . . Recycling Units . | . . . . . . Scanalyzers . | . . . . . . Garrison Access . | . . . . . . Data Cores Recovered . | . . . . . . Used . | . . . . . . Hacking Detections 6 | . 6 . . . . Full Trace Events . | . . . . . . Feedback Events . | . . . . . . Feedback Blocked . | . . . . . . Robot Schematics Acquired . | . . . . . . Robots Built . | . . . . . . Authchips . | . . . . . . Time . | . . . . . . Total Robot Build Rating . | . . . . . . Part Schematics Acquired . | . . . . . . Parts Built . | . . . . . . Authchips . | . . . . . . Time . | . . . . . . Total Part Build Rating . | . . . . . . Parts Repaired 2 | . 2 . . . . Time 52 | . 52 . . . . Parts Recycled . | . . . . . . Recycled Matter . | . . . . . . Retrieved Matter . | . . . . . . Retrieved Components . | . . . . . . Parts Scanalyzed . | . . . . . . Part Schematics Acquired . | . . . . . . Parts Damaged . | . . . . . . Bothacking | -11 -10 -10 -10 -9 -8 ------------ Run | Yrd Mat Min Exi Min Mat Used RIF Installer . | . . . . . . Robots Hacked . | . . . . . . Non-combat . | . . . . . . Combat . | . . . . . . Robot Hacks Applied . | . . . . . . Relay Couplers Released . | . . . . . . Fabnet Peak Effective % . | . . . . . . Robots Rewired . | . . . . . . Allies Hacked . | . . . . . . Hacks Repelled . | . . . . . . Allies | -11 -10 -10 -10 -9 -8 -------- Run | Yrd Mat Min Exi Min Mat Total Allies 1 | . . 1 . . . Largest Group 1 | . . 1 . . . Highest-Rated Group 31 | . . 31 . . . Highest-Rated Ally 31 | . . 31 . . . Total Orders . | . . . . . . Ally Attacks . | . . . . . . Total Damage . | . . . . . . Kills . | . . . . . . Allies Corrupted . | . . . . . . Allies Melted . | . . . . . . Intel | -11 -10 -10 -10 -9 -8 ------- Run | Yrd Mat Min Exi Min Mat Robot Analysis Total 3 | . 3 . . . . Derelict Logs Recovered 2 | . . 1 . 1 . Drone Launches . | . . . . . . Drone Recoveries . | . . . . . . Exploration | -11 -10 -10 -10 -9 -8 ------------- Run | Yrd Mat Min Exi Min Mat Turns Passed 4557 | 114 1201 382 827 1637 396 Spaces Moved 1775 | 60 623 229 370 423 70 Core 3 | 3 . . . . . Treads 1772 | 57 623 229 370 423 70 Legs . | . . . . . . Wheels . | . . . . . . Hover . | . . . . . . Flight . | . . . . . . Fastest Speed 50 | 50 160 160 160 240 160 Average Speed 194 | 154 160 160 223 240 224 Slowest Speed 320 | 160 160 160 240 240 320 Overloaded Moves . | . . . . . . Propulsion Burnouts . | . . . . . . Robots Hopped . | . . . . . . Cave-ins Triggered . | . . . . . . Exploration Rate (%) 50 | 4 97 36 70 86 8 Regions Visited 5 Branch Regions 3 Pre-discovered Areas 2 | . . 1 1 . . Known Exits Taken 1 | . . . . 1 . Unknown Exits Taken 4 | 1 1 1 1 . . Scrap Searched 2 | . . . . 2 . Spaces Dug . | . . . . . . Terrain Destroyed 13 | . . . . 13 . Melee . | . . . . . . Projectile . | . . . . . . AOE 13 | . . . . 13 . Terrain Rammed . | . . . . . . Walls Destroyed . | . . . . . . Machines Disabled . | . . . . . . Actions | -11 -10 -10 -10 -9 -8 --------- Run | Yrd Mat Min Exi Min Mat Total 2616 | 74 759 237 372 991 183 Wait 620 | . 78 . . 525 17 Move 1770 | 59 622 228 369 422 70 Hop . | . . . . . . Pick Up 21 | 6 6 2 1 4 2 Fast Attach 20 | 7 5 . . 3 5 Attach 7 | . . . . . 7 Detach . | . . . . . . Swap 9 | . 2 . 1 5 1 Drop 10 | . 6 . 1 1 2 Fire 151 | 2 39 3 . 28 79 Melee . | . . . . . . Ram . | . . . . . . Kick . | . . . . . . Crush 8 | . 1 4 . 3 . Escape Stasis . | . . . . . . Rewire . | . . . . . . Trap . | . . . . . . Miscellaneous . | . . . . . . Route ------- -11/Scrapyard -10/Materials (discovered 4 exits: [*Mat x3] / [*Min]) -10/Mines (discovered 2 exits: [*Mat] / *Exi) -10/Exiles (discovered 2 exits: [*Min x2]) -9/Mines (discovered 2 exits: *Mat x2) -8/Materials (discovered 1 exit: [*Sto]) History --------- Turn | Location | Event 6 | -11/Scrapyard | Discovered new exit (range 15) 115 | -11/Scrapyard | Entered Materials 306 | -10/Materials | Build established: Mutant 459 | -10/Materials | Discovered new exit (range 5) 536 | -10/Materials | Repaired Assault Rifle 563 | -10/Materials | Repaired Lgt. Treads 698 | -10/Materials | Discovered new exit (range 12) 903 | -10/Materials | Discovered new exit (range 16) 1219 | -10/Materials | Discovered new exit (range 16) 1316 | -10/Materials | Entered Mines 1319 | -10/Mines | Received a Mining Laser from a helpful Derelict 1401 | -10/Mines | Discovered new exit (range 3) 1570 | -10/Mines | Deemed a non-threat by the Exiles lab entrance 1628 | -10/Mines | Assembled infested the area 1633 | -10/Mines | Assisted by a Guerilla fighting off Assembled 1692 | -10/Mines | Discovered new exit (range 5) 1698 | -10/Mines | Entered Exiles 1724 | -10/Exiles | Discovered new exit (range 15) 1742 | -10/Exiles | Met 8R-AWN 1762 | -10/Exiles | Met EX-HEX 1864 | -10/Exiles | Met EX-DEC 1917 | -10/Exiles | Learned location of Zion (-7) 2172 | -10/Exiles | Met EX-BIN 2210 | -10/Exiles | Aligned with FarCom system 2212 | -10/Exiles | Given EX-Vault access code 2275 | -10/Exiles | Opened EX-Vault 2292 | -10/Exiles | Found XL Autogun Array 2343 | -10/Exiles | Warned to stay clear of 0b10 Research branches 2497 | -10/Exiles | Discovered new exit (range 14) 2525 | -10/Exiles | Left Exiles lab with XL Autogun Array 2525 | -10/Exiles | Entered Mines 2540 | -9/Mines | Met a Derelict bent on vengeance 2817 | -9/Mines | Received a Rocket Launcher from a helpful Derelict 2884 | -9/Mines | Identified exit to Materials 2971 | -9/Mines | Build established: Skirmisher 3100 | -9/Mines | Core integrity fell below 50% 4064 | -9/Mines | Discovered exit to Materials (range 5) 4162 | -9/Mines | Entered Materials 4162 | -8/Materials | Evolved 4 slots: Propulsion x1, Utility x3 4270 | -8/Materials | Lost 4 parts (1p2n1u) 4343 | -8/Materials | Lost 3 parts (1p1n1w) 4455 | -8/Materials | Discovered new exit (range 16) 4498 | -8/Materials | Core integrity fell below 50% 4544 | -8/Materials | Core integrity fell below 20% 4558 | -8/Materials | Destroyed by G-47 Trooper with Particle Gun Last Messages --------------- 04495_ K-01 Serf collects debris. 04496_ G-47 Trooper destroyed. 04498_ K-01 Serf collects debris. 04499_ G-47 Trooper destroyed. 04501_ K-01 Serf collects debris. 04504_ G-47 Trooper destroyed. 04507_ K-01 Serf collects debris. 04513_ Lgt. Assault Rifle destroyed. 04513_ K-01 Serf collects debris. 04518_ K-01 Serf destroyed. 04522_ B-36 Bruiser destroyed. 04523_ S-10 Pest destroyed. 04528_ Carbon-fiber Leg destroyed. 04537_ Minigun destroyed. 04538_ Lgt. Assault Rifle destroyed. 04542_ R-06 Scavenger collects Lgt. Assault Rifle. 04545_ R-06 Scavenger collects Flight Unit. 04547_ Y-45 Defender destroyed. 04548_ R-06 Scavenger collects Flight Unit. 04550_ Lgt. Assault Rifle destroyed. Map ----- +----------------------------------------------------+ | ?????????????????????????????????????????????????? | | ?????????????????????????????????????????????????? | | ?????????????????????????????????????????????????? | | ????????????????????########?????????????????????? | | ????????????????????# ==#?????????????????????? | | ????????????????????# ==#?????????????????????? | | ????????????????????# #####?????????????????? | | ????????????????????# # #?????????????????? | | ????????????????????# !! # #?????????????????? | | ????????????????????# ! [[# #?????????????????? | | ????????????????????####+### #?????????????????? | | ????????????????????# %%= #?????????????????? | | ????????????????????+ #?????????????????? | | ????????????????????# #?????????????????? | | ????????????????????# ########?????????????????? | | ????????????????????# # #?????????????????? | | ????????????????????# %#[ """ #?????????????????? | | ?????????############ + """ #?????????????????? | | ???????? # """ #?????????????????? | | ???????? # #?????????????????? | | ???????? # ! #?????????????????? | | ????????? ########### ############+#???????????? | | ????????????????????# =#!%= #???????????? | | ??????????# ! # [ # *= #???????????? | | ??????????# " +%% g #???????????? | | ??????????+ !! # #@*! #???????????? | | ??????????# ! ?# #==%= #???????????? | | ??????????###### #??# ###+##########???????????? | | ???????????????#????# #??%[ ???????????????????? | | ????????????????????# #??? ??????????????????? | | ????????????????????# #????" "?????????????????? | | ????????????????????# !=#????? ""????????????????? | | ????????????????????#=%|?????? """???????????????? | | ????????????????????# ! ???????"""???????????????? | | ????????????????????# ???????? ????????????????? | | ???????????????????? ?????????????????????????? | | ???????????????????? ?????????????????????????? | | ???????????????????? < ?????????????????????????? | | ????????????????????? ?????????????????????????? | | ?????????????????????????????????????????????????? | | ?????????????????????????????????????????????????? | | ?????????????????????????????????????????????????? | | ?????????????????????????????????????????????????? | | ?????????????????????????????????????????????????? | | ?????????????????????????????????????????????????? | | ?????????????????????????????????????????????????? | | ?????????????????????????????????????????????????? | | ?????????????????????????????????????????????????? | | ?????????????????????????????????????????????????? | | ?????????????????????????????????????????????????? | +----------------------------------------------------+ Best States ------------- Heat Dissipation 31 Energy Generation 18 Energy Capacity 250 Matter Stores 300 Matter Capacity 300 Sight Range 16 Terrain Scan Range 14 Terrain Scan Density 10 Armor Coverage 150 Evasion (%) 40 Recoil Reduction 3 Item Schematics ----------------- None Robot Schematics ------------------ None Fabricated ------------ Nothing Alien Tech Used ----------------- None Achievements -------------- None Challenges ------------ None Game ------ Seed FactoryFortressNanovents Manual? 0 Play Time 00:16:23 Cumulative 655.3 hours Start 2023.12.20 @ 00:29:26 End 2023.12.20 @ 07:52:05 Sessions 3 Manual Loads 0 Difficulty Rogue Special Mode None Game No. 576 Rogue 361 Adventurer 112 Explorer 103 Win Type - Total 43 Types 26/0/8/3/0/0/5/1/0 Lore% 85 Gallery% 91 Achievement% 82 Wizard Run 0 Options --------- ASCII 0 Keyboard 0 Movement Vi Keybinds 1 Fullscreen 2 Font 20/Terminus Map View 72x56 Zoom Use 3% Tactical HUD 1 Map Filters NONE Filters NONE Steam 0 RUN: 3cdf1216-c85d-4c6e-9fba-c7b752a2b5aa